Workbook

Sheet Jægersborg - Katalog 19-20
A1: GULE FELTER SKAL UDFYLDES! | C1: Jægersborg sortiment | Y1: Årgang | Z1: Hold | AA1: Betales af
A3: ÅRGANG | E3: HOLD | J3: HOLDANSVARLIG | Y3: INGEN (Senior og UNIK) | Z3: Drenge | AA3: JÆGERSBORG BK
Y4: 2000 | Z4: Piger | AA4: SPONSOR - Udfyld ark
A5: PRIS INKL. MOMS* | B5: =A206*D16+B206*D27+C206*D39+D206*B39+E206*D67+F206*D80+G206*D94+H206*D106+I206*D127+D142*K206+L206*D149+A208*E169+E170*B208+C208*E174+D208*E175+E179*E208+F208*E180+E184*G208+H208*E185+E189*I208+J208*E190+E194*K208+L208*E195+E199*A210+B210*E200 -> 0 | E5: BETALES AF | K5: KLUBBENS KONTO NR | L5: 1551 - 9125027 | Y5: 2001 | Z5: Soccermoms | AA5: TRÆNER/HOLDLEDER
Y6: 2002 | Z6: Soccerdads
A7: DATO | E7: INDBETALING TIL JÆGERSBORG KONTO SKAL FINDE STED SENEST 5 DAGE EFTER BESTILLING | Y7: 2003 | Z7: Senior 1
A8: *Prisberegner udregner for sætpriser og gælder kun ved korrekt udfyldt ark - spørg altid for bekræftelse af pris da her tages forbehold for fejl! | Y8: 2004 | Z8: Senior 2
A9: Jægersborg sortiment | Q9: Trykpriser og bemærkninger | Y9: 2005 | Z9: Senior 3
Q10: Tryk | R10: Str. CM | S10: Pris | T10: Note | U10: Alternativ | Y10: 2006 | Z10: Senior 4
Q11: Tal centreret på bryst | R11: 5 | S11: 25 | T11: pr tal | Y11: 2007 | Z11: Senior 5
H12: Entrada T-shirt | Q12: Tal på short | R12: 5 | S12: 25 | T12: pr tal | Y12: 2008 | Z12: Veteraner
H13: S | I13: M | J13: L | K13: XL | L13: XXL | Q13: Tal på bukser | R13: 5 | S13: 25 | T13: pr tal | Y13: 2009 | Z13: 60+
Q14: Initialer - bogstaver | R14: 3.5 | S14: 43.75 | T14: pr linje | Y14: 2010 | Z14: CP
D15: Børn/Voksen | E15: Fravælges dele af tryk forbliver | Q15: Tal på ryg | R15: 25 | S15: 31.25 | T15: pr tal | U15: 20 CM hvis ønsket | Y15: 2011
A16: KONTINGENTPAKKE - Markspiller | D16: 299 | E16: pakkeprisen den samme | H16: 128 | I16: 140 | J16: 152 | K16: 164 | Q16: Navn på ryg | R16: 5 | S16: 43.75 | T16: pr linje | Y16: 2012
A17: Stylenavn | B17: Dessinnr.: | C17: SDK: | D17: Farve | E17: Enkeltpriser | H17: Parma Shorts | Q17: Sponsorlogo 1-farvet | R17: max 25*25 | S17: 37.5 | U17: Flere farver - dyrere | Y17: 2013
A18: Entrada t-shirt | B18: CF1036 | C18: 1581376 | D18: Navy | E18: =150*0.8+25+43.75 -> 188.75 | H18: S | I18: M | J18: L | K18: XL | L18: XXL | Q18: Sponsorlogo 1-farvet | R18: max 10*10 | S18: 25 | U18: Flere farver - dyrere | Y18: 2014
A19: Parma shorts | B19: AJ5883 | C19: 1469846 | D19: Navy | E19: =130*0.8+25 -> 129 | Q19: Klublogo | R19: ca. 10*10 | S19: 25 | Y19: 2015
A20: Milano strømper | B20: AC5262 | C20: 1442186 | D20: Navy | E20: =70*0.8 -> 56 | Q20: Hvis et sponsor logo har flere farver stiger prisen - spørg efter tilbud | Y20: 2016
A21: Inkl. klublogo på venstre bryst, samt højre lår og navn på ryg af t-shirt | H21: 128 | I21: 140 | J21: 152 | K21: 164 | Y21: 2017
A22: Udvidet: Nummer centreret på bryst og/eller ryggen, samt mulighed for nummer på venstre lår over Adidas logo | H22: Milano Strømper | Q22: Tasker: | Y22: 2018
A23: Udvidet koster ekstra - se pris i oversigten | G23: 27-30 | H23: 31-33 | I23: 34-36 | J23: 37-39 | K23: 40-42 | L23: 43-45 | M23: 46-48 | Q23: Initialer / Navn | R23: 1 | S23: 31.25 | T23: pr linje
Q24: Tal | R24: 5 | S24: 25 | T24: pr tal
H25: Assista trøje - Notér farve her: | Q25: Taske: Efternavn, fornavn eller kaldenavn - dette er op til den årgangsansvarlige.
D26: Børn/Voksen | E26: Fravælges dele af tryk forbliver | H26: S | I26: M | J26: L | K26: XL | L26: XXL | Q26: Alle udvidede versioner koster ekstra, da der påføres ekstra tryk.
A27: KONTINGENTPAKKE - Målmand | D27: 399 | E27: pakkeprisen den samme | Q27: Enkelte modeller eksisterer også i XXXL, så spørg ind hvis behovet melder sig.
A28: Stylenavn | B28: Dessinnr.: | C28: SDK: | D28: Farve | E28: Enkeltpriser
A29: Assita trøje | B29: AZ5399 | C29: 1494821 | D29: Blå | E29: =280*0.8+25+43.75 -> 292.75 | H29: 128 | I29: 140 | J29: 152 | K29: 164 | Q29: Alle grønne priser er sætpriser inkl. standard tryk.
A30: Assita trøje | B30: AZ5400 | C30: 1494822 | D30: Grøn | E30: =280*0.8+25+43.75 -> 292.75 | H30: Parma Shorts
A31: Assita trøje | B31: AZ5398 | C31: 1494820 | D31: Orange | E31: =280*0.8+25+43.75 -> 292.75 | H31: S | I31: M | J31: L | K31: XL | L31: XXL | Q31: Alle gule priser er enkeltpriser for tøjet inkl. standard tryk.
A32: Parma shorts | B32: AJ5883 | C32: 1469846 | D32: Navy | E32: =130*0.8+25 -> 129 | Q32: Priser er generelt beregnet ud fra anvendelsen af 2 cifre ved tryk af tal.
A33: Milano strømper | B33: AC5262 | C33: 1442186 | D33: Navy | E33: =70*0.8 -> 56 | Q33: Derfor vil der i nogle tilfælde blive faktureret mindre end påført her.
A34: Inkl. klublogo på venstre bryst, samt højre lår og navn på ryg af t-shirt | H34: 128 | I34: 140 | J34: 152 | K34: 164
A35: Udvidet: Nummer centreret på bryst og/eller ryggen, samt mulighed for nummer på venstre lår over Adidas logo | H35: Milano Strømper | Q35: Sætpris uden tryk
A36: Udvidet koster ekstra - se pris i oversigten | G36: 27-30 | H36: 31-33 | I36: 34-36 | J36: 37-39 | K36: 40-42 | L36: 43-45 | M36: 46-48
B38: Børn | D38: Voksen | E38: Fravælges dele af tryk forbliver | H38: Tabela T-shirt
A39: TILKØBSPAKKE | B39: 1349 | D39: 1449 | E39: pakkeprisen den samme | H39: S | I39: M | J39: L | K39: XL | L39: XXL
A40: Stylenavn | B40: Dessinnr.: | C40: SDK: | D40: Farve | E40: Enkeltpriser
A41: Tabela t-shirt | B41: CE8936 | C41: 1581826 | D41: Blå | E41: =200*0.8+25+31.25+31.25+43.75 -> 291.25
A42: Squadra shorts | B42: BJ9227 | C42: 1492318 | D42: Hvid | E42: =170*0.8+25 -> 161 | H42: 128 | I42: 140 | J42: 152 | K42: 164
A43: Adisock | B43: CF3578 | C43: 2001463 | D43: Blå | E43: =120*0.8 -> 96
A44: Core tr. Top - voksen | B44: CE9026 | C44: 1582899 | D44: Sort | E44: =280*0.8+25+25+25 -> 299 | H44: Squadra Short
A45: Core tr. Top - børn | B45: CE9028 | C45: 1581843 | D45: Sort | E45: =250*0.8+25+25+25 -> 275 | H45: S | I45: M | J45: L | K45: XL | L45: XXL
A46: Core tr. Buks - voksen | B46: CE9036 | C46: 1581848 | D46: Sort | E46: =250*0.8+25+25+25 -> 275
A47: Core tr. Buks - børn | B47: CE9034 | C47: 1581847 | D47: Sort | E47: =200*0.8+25+25+25 -> 235
A48: Tiro Taske (M) | B48: DQ1075 | C48: 2082876 | D48: Sort | E48: =280*0.8+25+31.25+25+25 -> 330.25 | H48: 128 | I48: 140 | J48: 152 | K48: 164
A49: Tee: Klublogo på venstre bryst samt navn og nummer på ryg.
A50: Shorts: Klublogo på venstre lår | H50: Adisok Strømper
A51: Udvidet: Tal på højre lår - koster ekstra - se pris i oversigten | G51: 27-30 | H51: 31-33 | I51: 34-36 | J51: 37-39 | K51: 40-42 | L51: 43-45 | M51: 46-48
A52: Midlayer: Klublogo på venstre bryst, nummer center bryst
A53: Udvidet: navn på ryg - koster ekstra - se pris i oversigten | H53: Core tr. Top
A54: Buks: Klublogo på venstre lår, nummer på højre lår | H54: S | I54: M | J54: L | K54: XL | L54: XXL
A55: Taske: Klublogo + navn på langside - 5CM nummer på låget
H57: 128 | I57: 140 | J57: 152 | K57: 164
H58: Core tr. Buks
H59: S | I59: M | J59: L | K59: XL | L59: XXL
H62: 128 | I62: 140 | J62: 152 | K62: 164
H63: Taske - M
J64: M
D66: Børn/Voksen | E66: Fravælges dele af tryk forbliver | H66: Tabela T-shirt
A67: Kampsæt - Hjemme | D67: 499 | E67: pakkeprisen den samme | H67: S | I67: M | J67: L | K67: XL | L67: XXL
A68: Stylenavn | B68: Dessinnr.: | C68: SDK: | D68: Farve | E68: Enkeltpriser
A69: Tabela t-shirt | B69: CE8936 | C69: 1581826 | D69: Blå | E69: =200*0.8+25+31.25+31.25+43.75 -> 291.25
A70: Squadra shorts | B70: BJ9227 | C70: 1492318 | D70: Hvid | E70: =170*0.8+25 -> 161 | H70: 128 | I70: 140 | J70: 152 | K70: 164
A71: Adisock strømper | B71: CF3578 | C71: 2001463 | D71: Blå | E71: =120*0.8 -> 96 | H71: Squadra Short
A72: Tee: Klublogo på venstre bryst samt navn og nummer på ryg. | H72: S | I72: M | J72: L | K72: XL | L72: XXL
A73: Shorts: Klublogo på venstre lår
A74: Udvidet: Tal på højre lår - koster ekstra - se pris i oversigten
H75: 128 | I75: 140 | J75: 152 | K75: 164
H76: Adisok Strømper
G77: 27-30 | H77: 31-33 | I77: 34-36 | J77: 37-39 | K77: 40-42 | L77: 43-45 | M77: 46-48
D79: Børn/Voksen | E79: Fravælges dele af tryk forbliver | H79: Tabela T-shirt
A80: Kampsæt - Ude | D80: 499 | E80: pakkeprisen den samme | H80: S | I80: M | J80: L | K80: XL | L80: XXL
A81: Stylenavn | B81: Dessinnr.: | C81: SDK: | D81: Farve | E81: Enkeltpriser
A82: Tabela t-shirt | B82: CE8935 | C82: 1581825 | D82: Rød | E82: =200*0.8+25+31.25+31.25+43.75 -> 291.25
A83: Squadra shorts | B83: BJ9226 | C83: 1492317 | D83: Rød | E83: =170*0.8+25 -> 161 | H83: 128 | I83: 140 | J83: 152 | K83: 164
A84: Adisock strømper | B84: CF3577 | C84: 2001462 | D84: Rød | E84: =120*0.8 -> 96 | H84: Squadra Short
A85: Tee: Klublogo på venstre bryst samt navn og nummer på ryg. | H85: S | I85: M | J85: L | K85: XL | L85: XXL
A86: Shorts: Klublogo på venstre lår
A87: Udvidet: Tal på højre lår - koster ekstra - se pris i oversigten
H88: 128 | I88: 140 | J88: 152 | K88: 164
H89: Adisok Strømper
G90: 27-30 | H90: 31-33 | I90: 34-36 | J90: 37-39 | K90: 40-42 | L90: 43-45 | M90: 46-48
H92: Assista trøje - Notér farve her:
D93: Børn/Voksen | E93: Fravælges dele af tryk forbliver | H93: S | I93: M | J93: L | K93: XL | L93: XXL
A94: Kampsæt - Målmand | D94: 599 | E94: pakkeprisen den samme
A95: Stylenavn | B95: Dessinnr.: | C95: SDK: | D95: Farve | E95: Enkeltpriser
A96: Assita trøje | B96: AZ5399 | C96: 1494821 | D96: Blå | E96: =280*0.8+25+43.75+31.25+31.25 -> 355.25 | H96: 128 | I96: 140 | J96: 152 | K96: 164
A97: Assita trøje | B97: AZ5400 | C97: 1494822 | D97: Grøn | E97: =280*0.8+25+43.75+31.25+31.25 -> 355.25 | H97: Squadra Shorts
A98: Assita trøje | B98: AZ5398 | C98: 1494820 | D98: Orange | E98: =280*0.8+25+43.75+31.25+31.25 -> 355.25 | H98: S | I98: M | J98: L | K98: XL | L98: XXL
A99: Squadra shorts | B99: BK4766 | C99: 1495073 | D99: Sort | E99: =170*0.8+25 -> 161
A100: Adisock strømper | B100: CF3576 | C100: 2001461 | D100: Sort | E100: =120*0.8 -> 96
A101: Tee: Klublogo på venstre bryst samt navn og nummer på ryg. | H101: 128 | I101: 140 | J101: 152 | K101: 164
A102: Shorts: Klublogo på venstre lår | H102: Adisock Strømper
A103: Udvidet: Tal på højre lår - koster ekstra - se pris i oversigten | G103: 27-30 | H103: 31-33 | I103: 34-36 | J103: 37-39 | K103: 40-42 | L103: 43-45 | M103: 46-48
A105: *Trænerpakke trækkes fra Sponsor konto | D105: Voksen | E105: Fravælges dele af tryk forbliver | H105: Core T-shirt | N105: Hue
A106: Trænerpakke | D106: 2799 | E106: pakkeprisen den samme | H106: S | I106: M | J106: L | K106: XL | L106: XXL | N106: OSFY | O106: OSFM | P106: OSFL
A107: Stylenavn | B107: Dessinnr.: | C107: SDK: | D107: Farve | E107: Enkeltpriser
A108: 2* Core t-shirt | B108: CE9021 | C108: 1581842 | D108: Sort | E108: =2*170*0.8+(43.75+25)*2 -> 409.5 | H108: Core Short | N108: Handsker
A109: Core short | B109: CE9031 | C109: 1581845 | D109: Sort | E109: =170*0.8+25 -> 161 | H109: S | I109: M | J109: L | K109: XL | L109: XXL | N109: S | O109: M | P109: L
A110: Milano strømper | B110: AJ5904 | C110: 1442187 | D110: Sort | E110: =70*0.8 -> 56
A111: Core tr. Top - voksen | B111: CE9026 | C111: 1582899 | D111: Sort | E111: =280*0.8+25+43.75 -> 292.75 | H111: Milano Strømper | N111: Halsedisse
A112: Core tr. Buks - voksen | B112: CE9036 | C112: 1581848 | D112: Sort | E112: =250*0.8+25 -> 225 | G112: 27-30 | H112: 31-33 | I112: 34-36 | J112: 37-39 | K112: 40-42 | L112: 43-45 | M112: 46-48 | O112: One Size
A113: Core regnjakke | B113: CE9048 | C113: 1582901 | D113: Sort | E113: =350*0.8+25+43.75 -> 348.75
A114: Condivo vinterjakke | B114: BQ6594 | C114: 1582814 | D114: Sort | E114: =1200*0.8+25+43.75 -> 1028.75 | H114: Core Trøje
A115: Hue | B115: DQ1070 | C115: 2082814 | D115: Sort | E115: =150*0.8 -> 120 | H115: S | I115: M | J115: L | K115: XL | L115: XXL
A116: Handsker | B116: DS8874 | C116: 2084515 | D116: Sort | E116: =170*0.8 -> 136
A117: Halsedisse | B117: DY1990 | C117: 2110987 | D117: Sort | E117: =170*0.8 -> 136 | H117: Core Bukser
A118: Tee: Klublogo på venstre bryst og titel på ryg | H118: S | I118: M | J118: L | K118: XL | L118: XXL
A119: Shorts: Klublogo på venstre lår
A120: Midlayer: Klublogo på venstre bryst og titel på ryg | H120: Core Regnjakke
A121: Buks: Klublogo på venstre lår | H121: S | I121: M | J121: L | K121: XL | L121: XXL
A122: Regnjakke: Klublogo på venstre bryst og titel på ryg
A123: Vinterjakke: Klublogo på venstre bryst og titel på ryg | H123: Condivo Vinterjakke
H124: S | I124: M | J124: L | K124: XL | L124: XXL
A126: *Assistent pakke trækkes fra Sponsor konto | D126: Voksen | E126: Fravælges dele af tryk forbliver | H126: Core T-shirt
A127: Assistent trænerpakke | D127: 1099 | E127: pakkeprisen den samme | H127: S | I127: M | J127: L | K127: XL | L127: XXL
A128: Stylenavn | B128: Dessinnr.: | C128: SDK: | D128: Farve | E128: Enkeltpriser
A129: 2* Core t-shirt | B129: CE9021 | C129: 1581842 | D129: Sort | E129: =2*170*0.8+(43.75+25)*2 -> 409.5 | H129: Core Short
A130: Core short | B130: CE9031 | C130: 1581845 | D130: Sort | E130: =170*0.8+25 -> 161 | H130: S | I130: M | J130: L | K130: XL | L130: XXL
A131: Milano strømper | B131: AJ5904 | C131: 1442187 | D131: Sort | E131: =70*0.8 -> 56
A132: Core tr. Top - voksen | B132: CE9026 | C132: 1582899 | D132: Sort | E132: =280*0.8+25+43.75 -> 292.75 | H132: Milano Strømper
A133: Core tr. Buks - voksen | B133: CE9036 | C133: 1581848 | D133: Sort | E133: =250*0.8+25 -> 225 | G133: 27-30 | H133: 31-33 | I133: 34-36 | J133: 37-39 | K133: 40-42 | L133: 43-45
A134: Tee: Klublogo på venstre bryst og titel på ryg
A135: Shorts: Klublogo på venstre lår | H135: Core Trøje
A136: Midlayer: Klublogo på venstre bryst og titel på ryg | H136: S | I136: M | J136: L | K136: XL | L136: XXL
A137: Buks: Klublogo på venstre lår
H138: Core Bukser
H139: S | I139: M | J139: L | K139: XL | L139: XXL
D141: Pakke | E141: Fravælges dele af tryk forbliver
A142: Frivillig/holdleder/årgangsans. | D142: 449 | E142: pakkeprisen den samme | H142: Core T-shirt
A143: Stylenavn | B143: Dessinnr.: | C143: SDK: | D143: Farve | E143: Enkeltpriser | H143: S | I143: M | J143: L | K143: XL | L143: XXL
A144: Core t-shirt | B144: CE9021 | C144: 1581842 | D144: Sort | E144: =170*0.8+25+43.75 -> 204.75
A145: Core polo | B145: CE9037 | C145: 1581849 | D145: Sort | E145: =220*0.8+25+43.75 -> 244.75 | H145: Core Polo
A146: Tee: Klublogo bryst og titel på ryggen | H146: S | I146: M | J146: L | K146: XL | L146: XXL
A147: Polo: Klublogo bryst og titel på ryggen
D148: Pakke
A149: Merchandise | D149: 949
A150: Stylenavn | B150: Dessinnr.: | C150: SDK: | D150: Farve | E150: Enkeltpriser | H150: One Size
A151: Drikkedunk | B151: S96920 | C151: 1493230 | D151: Sort | E151: =50*0.8 -> 40
A152: Rygsæk | B152: DU1996 | C152: 2085252 | D152: Blå | E152: =280*0.8+25+25+25 -> 299
A153: Tiro Gymbag | B153: DQ1068 | C153: 2082933 | D153: Sort | E153: =130*0.8 -> 104
A154: Tiro Taske (M) | B154: DQ1075 | C154: 2082876 | D154: Sort | E154: =280*0.8+25+31.25+25+25 -> 330.25 | I154: Hue
A155: Halsedisse | B155: DY1990 | C155: 2110987 | D155: Sort | E155: =170*0.8 -> 136 | I155: Youth | J155: M | K155: L
A156: Hue | B156: DQ1070 | C156: 2082814 | D156: Sort | E156: =150*0.8 -> 120
A157: Handsker | B157: DS8874 | C157: 2084515 | D157: Sort | E157: =170*0.8 -> 136 | I157: Handsker
I158: S | J158: M | K158: L
A161: Øvrig Beklædning
A162: Stylenavn | B162: Dessinnr.: | C162: SDK: | D162: Farve | E162: Enkeltpriser | H162: Tiro Warm Top - Sort
H163: S | I163: M | J163: L | K163: XL | L163: XXL
A164: Tiro Warm top - Voksen | B164: DJ2593 | C164: 2082792 | D164: Sort | E164: =530*0.8+25 -> 449
A165: Tiro Warm top - Børn | B165: D95952 | C165: 2082749 | D165: Sort | E165: 399
H166: 116 | I166: 128 | J166: 140 | K166: 152 | L166: 164
H167: Tiro Warm Top - Navy
H168: S | I168: M | J168: L | K168: XL | L168: XXL
A169: Tiro Warm top - Voksen | B169: DT5791 | C169: 2084667 | D169: Navy | E169: =530*0.8+25 -> 449
A170: Tiro Warm top - Børn | B170: DT5282 | C170: 2085358 | D170: Navy | E170: 399
H171: 116 | I171: 128 | J171: 140 | K171: 152 | L171: 164
H172: Core Zip Trøje - Sort
H173: S | I173: M | J173: L | K173: XL | L173: XXL
A174: Core Zip trøje - Voksen | B174: CE9053 | C174: 1581858 | D174: Sort | E174: 229
A175: Core Zip trøje - Børn | B175: CE9052 | C175: 1581857 | D175: Sort | E175: 199
H176: 116 | I176: 128 | J176: 140 | K176: 152 | L176: 164
H177: Core Zip Trøje - Navy
H178: S | I178: M | J178: L | K178: XL | L178: XXL
A179: Core Zip trøje - Voksen | B179: CV3563 | C179: 1584951 | D179: Navy | E179: 229
A180: Core Zip trøje - Børn | B180: CV3577 | C180: 1584954 | D180: Navy | E180: 199
H181: 116 | I181: 128 | J181: 140 | K181: 152 | L181: 164
H182: Core Bukser - Navy
H183: S | I183: M | J183: L | K183: XL | L183: XXL
A184: Core Bukser - Voksen | B184: CV3988 | C184: 1585049 | D184: Navy | E184: 249
A185: Core Bukser - Børn | B185: CV3994 | C185: 1585050 | D185: Navy | E185: 199
H186: 116 | I186: 128 | J186: 140 | K186: 152 | L186: 164
H187: Core Hoody - Sort
H188: S | I188: M | J188: L | K188: XL | L188: XXL
A189: Core Hoody - Voksen | B189: CE9068 | C189: 1581867 | D189: Sort | E189: 349
A190: Core Hoody - Børn | B190: CE9069 | C190: 1581862 | D190: Sort | E190: =280*0.8+25 -> 249
H191: 116 | I191: 128 | J191: 140 | K191: 152 | L191: 164
H192: Core Hoody - Navy
H193: S | I193: M | J193: L | K193: XL | L193: XXL
A194: Core Hoody - Voksen | B194: CV3332 | C194: 1584928 | D194: Navy | E194: 349
A195: Core Hoody - Børn | B195: CV3430 | C195: 1584933 | D195: Navy | E195: =280*0.8+25 -> 249
H196: 116 | I196: 128 | J196: 140 | K196: 152 | L196: 164
H197: Core Jakke - Sort
H198: S | I198: M | J198: L | K198: XL | L198: XXL
A199: Core Jakke - Voksen | B199: CE9057 | C199: 1581861 | D199: Sort | E199: 649
A200: Core Jakke - Børn | B200: CE9058 | C200: 1581862 | D200: Sort | E200: 549
H201: 116 | I201: 128 | J201: 140 | K201: 152 | L201: 164
A202: Alle dele under "Øvrig beklædning" er inklusiv klublogo på bryst
A205: Kont. Mark | B205: Kont. GK | C205: Tilkøb voksen | D205: Tilkøb børn | E205: Kamp hj. | F205: Kamp ude | G205: Kamp GK | H205: Trænerpakke | I205: Ass træner pakke | K205: Frivillig | L205: Merc
A206: =SUM(H14:L15) -> 0 | B206: =SUM(H27:L28) -> 0 | C206: =SUM(H40:L40) -> 0 | D206: =SUM(H41:L41) -> 0 | E206: =SUM(H68:L69) -> 0 | F206: =SUM(H81:L82) -> 0 | G206: =SUM(H94:L95) -> 0 | H206: =SUM(H110:L110) -> 0 | I206: =SUM(H131:L131) -> 0 | K206: =SUM(H144:L144) -> 0 | L206: =SUM(H151) -> 0
A207: DT5791 | B207: DT5282 | C207: CE9053 | D207: CE9052 | E207: CV3563 | F207: CV3577 | G207: CV3988 | H207: CV3994 | I207: CE9068 | J207: CE9069 | K207: CV3332 | L207: CV3430
A208: =SUM(H169:L169) -> 0 | B208: =SUM(H170:L170) -> 0 | C208: =SUM(H174:L174) -> 0 | D208: =SUM(H175:L175) -> 0 | E208: =SUM(H179:L179) -> 0 | F208: =SUM(H180:L180) -> 0 | G208: =SUM(H184:L184) -> 0 | H208: =SUM(H185:L185) -> 0 | I208: =SUM(H189:L189) -> 0 | J208: =SUM(H190:L190) -> 0 | K208: =SUM(H194:L194) -> 0 | L208: =SUM(H195:L195) -> 0
A209: CE9057 | B209: CE9058
A210: =SUM(H199:L199) -> 0 | B210: =SUM(H200:L200) -> 0

Sheet Tryk
A1: *Ved bestilling af kontingentsæt eller kampsæt bruges bestillingsark lavet dertil*
A3: Dessin Nr. | B3: STR. | C3: Nummer | D3: Initialer | E3: Navn/Titel på ryg | F3: Navn - STORT | G3: Eventuelle kommentarer
F4: =UPPER(E4) -> 
F5: =UPPER(E5) -> 
F69: =UPPER(E69) -> 
